fUSD/lending_fUSD_20251221
["ID","MTS","AMOUNT","RATE_DAILY","PERIOD"]
[399407368,1766328651142,-150.0,0.00025,2]
[399407369,1766328651151,-150.0,0.00025,2]
[399407370,1766328651161,-150.0,0.00025,2]
[399407371,1766328651171,-150.0,0.00025,2]
[399407372,1766328651183,-500.0,0.00025135,2]
[399407373,1766328651192,-500.0,0.00025135,2]
[399407374,1766328651202,-500.0,0.00025135,2]
[399407375,1766328651212,-549.68,0.00025135,2]
[399407376,1766328651225,-3710.0,0.00025352,2]
[399407377,1766328651236,-597.19377965,0.0002599,2]
[399407378,1766328651245,-215.26219273,0.00026,2]
[399407379,1766328651255,-7436.86186478,0.00026,10]
[399407380,1766328651264,-162.03137973,0.00026,2]
[399407381,1766328651274,-309.29654756,0.00026143,2]
[399407382,1766328651283,-346.92554585,0.00026143,2]
[399407383,1766328651293,-4144.52,0.000262,7]
[399407384,1766328651304,-151.17822928,0.00026344,2]
[399407385,1766328651314,-1000.0,0.00026676,2]
[399407386,1766328651323,-184.76959431,0.00026799,2]
[399407387,1766328651332,-250.0,0.00027,2]
[399407388,1766328651341,-1028.07011982,0.00027,2]
[399407389,1766328651350,-530.0,0.00027,2]
[399407390,1766328651360,-3710.0,0.00027102,2]
[399407391,1766328651368,-150.0,0.00027369,2]
[399407392,1766328651378,-416.2,0.00027397,7]
[399407393,1766328651387,-1438.57,0.00027397,2]
[399407394,1766328651396,-422.378294,0.00027397,7]
[399407395,1766328651406,-422.378294,0.00027397,7]
[399407396,1766328651415,-422.378294,0.00027397,7]
[399407397,1766328651424,-422.378294,0.00027397,7]
[399407398,1766328651434,-422.378294,0.00027397,7]
[399407399,1766328651443,-422.378294,0.00027397,7]
[399407400,1766328651453,-422.378294,0.00027397,7]
[399407401,1766328651462,-422.378294,0.00027397,7]
[399407402,1766328651473,-183.33,0.00027397,10]
[399407403,1766328651483,-3330.16289478,0.00027454,2]
[399407404,1766328651493,-320.74051982,0.00027512,2]
[399407405,1766328651502,-359.76179104,0.00027512,2]
[399407406,1766328651511,-1609.0,0.00027593,2]
[399407407,1766328651522,-612.0,0.00027593,2]
[399407408,1766328651533,-3456.0,0.00027593,2]
[399407409,1766328651542,-1326.0,0.00027593,2]
[399407410,1766328651552,-1262.0,0.00027593,2]
[399407411,1766328651562,-518.0,0.00027593,2]
[399407412,1766328651571,-150.0,0.00027593,2]
[399407413,1766328651580,-564.0,0.00027593,2]
[399407414,1766328651590,-2429.0,0.00027593,2]
[399407415,1766328651601,-11351.2,0.00027671,2]
[399407416,1766328651610,-781.69688379,0.00027895,2]
[399407417,1766328651622,-1406.60977323,0.00027895,2]
[399407418,1766328651633,-458.04273927,0.000279,2]
[399407419,1766328651644,-500.0,0.00027973,2]
[399407420,1766328651654,-151.17822928,0.0002799,2]
[399407421,1766328651663,-151.0,0.00028,2]
[399407422,1766328651673,-151.0,0.000285,7]
[399407423,1766328651682,-4144.52,0.000285,7]
[399407424,1766328651692,-5093.58039381,0.00028549,2]
[399407425,1766328651701,-5000.0,0.00028549,2]
[399407426,1766328651711,-5000.0,0.00028549,2]
[399407427,1766328651720,-5000.0,0.00028549,2]
[399407428,1766328651730,-1293.3902328,0.00028646,15]
[399407429,1766328651740,-3710.0,0.00028851,2]
[399407430,1766328651749,-332.60791905,0.00028881,2]
[399407431,1766328651758,-373.07297731,0.00028881,2]
[399407432,1766328651768,-152.0,0.0002941,3]
[399407433,1766328651777,-1790.54189972,0.00029427,2]
[399407434,1766328651786,-151.17822928,0.00029637,2]
[399407435,1766328651797,-7032.92290776,0.0003,2]
[399407436,1766328651809,-10000.0,0.0003,10]
[399407437,1766328651819,-715.86688572,0.0003,21]
[399407438,1766328651829,-190.0,0.0003,2]
[399407439,1766328651839,-151.0,0.0003,7]
[399407440,1766328651848,-151.0,0.0003,7]
[399407441,1766328651859,-1000.0,0.0003,7]
[399407442,1766328651870,-344.91441206,0.0003025,2]
[399407443,1766328651880,-386.87667747,0.0003025,2]
[399407444,1766328651890,-1609.0,0.00030593,2]
[399407445,1766328651900,-612.0,0.00030593,2]
[399407446,1766328651910,-3456.0,0.00030593,2]
[399407447,1766328651919,-1326.0,0.00030593,2]
[399407448,1766328651929,-1262.0,0.00030593,2]
[399407449,1766328651939,-518.0,0.00030593,2]
[399407450,1766328651948,-150.0,0.00030593,2]
[399407451,1766328651958,-564.0,0.00030593,2]
[399407452,1766328651968,-2429.0,0.00030593,2]
[399407453,1766328651977,-3710.0,0.000306,2]
[399407454,1766328651986,-152.369,0.00031,5]
[399407455,1766328651995,-151.17822928,0.00031283,2]
[399407456,1766328652005,-196.18048418,0.000315,2]
[399407457,1766328652015,-150.0,0.000315,2]
[399407458,1766328652024,-357.6762453,0.00031619,2]
[399407459,1766328652035,-401.19111454,0.00031619,2]
[399407460,1766328652046,-4144.52,0.000317,7]
[399407461,1766328652056,-150.0,0.00032,2]
[399407462,1766328652066,-151.0,0.00032,2]
[399407463,1766328652075,-3710.0,0.00032349,3]
[399407464,1766328652085,-185.56081346,0.00032876,2]
[399407465,1766328652094,-392.01953306,0.00032876,2]
[399407466,1766328652104,-500.0,0.00032876,2]
[399407467,1766328652114,-577.68544593,0.00032876,2]
[399407468,1766328652123,-500.0,0.00032876,2]
[399407469,1766328652133,-500.0,0.00032876,2]
[399407470,1766328652143,-287.07342019,0.00032876,2]
[399407471,1766328652152,-500.0,0.00032876,2]
[399407472,1766328652163,-500.0,0.00032876,2]
[399407473,1766328652172,-500.0,0.00032876,2]
[399407474,1766328652182,-300.95705762,0.00032876,2]
[399407475,1766328652192,-601.94955142,0.00032876,2]
[399407476,1766328652202,-601.94955142,0.00032876,2]
[399407477,1766328652211,-601.94955142,0.00032876,2]
[399407478,1766328652223,-601.94955142,0.00032876,2]
[399407479,1766328652233,-221.23219233,0.00032876,2]
[399407480,1766328652276,-372.60082318,0.00032876,2]
[399407481,1766328652286,-579.95406068,0.00032876,2]
[399407482,1766328652299,-13.87895483,0.00032876,2]
[399407483,1766328652309,-427.48104517,0.00032876,2]
[399407484,1766328652324,-166.35197034,0.00032876,2]
[399407485,1766328652333,-601.94955142,0.00032876,2]
[399407486,1766328652343,-601.94955142,0.00032876,2]
[399407487,1766328652354,-593.83301551,0.00032876,2]
[399407488,1766328652363,-601.94955142,0.00032876,2]
[399407489,1766328652373,-601.94955142,0.00032876,2]
[399407490,1766328652383,-601.94955142,0.00032876,2]
[399407491,1766328652393,-593.83301551,0.00032876,2]
[399407492,1766328652403,-593.83301551,0.00032876,2]
[399407493,1766328652412,-593.83301551,0.00032876,2]
[399407494,1766328652421,-598.12826133,0.00032876,2]
[399407495,1766328652430,-500.0,0.00032876,2]
[399407496,1766328652439,-500.0,0.00032876,2]
[399407497,1766328652448,-500.0,0.00032876,2]
[399407498,1766328652458,-458.31172248,0.00032876,2]
[399407499,1766328652468,-513.85008398,0.00032876,2]
[399407500,1766328652478,-1421.41456551,0.00032876,2]
[399407501,1766328652488,-236.74772693,0.00032876,2]
[399407502,1766328652499,-5570.28512181,0.00032876,2]
[399407503,1766328652508,-5807.03284874,0.00032876,2]
[399407504,1766328652517,-1421.41456551,0.00032876,2]
[399407505,1766328652527,-1421.41456551,0.00032876,2]
[399407506,1766328652536,-4918.09230843,0.00032876,2]
[399407507,1766328652548,-888.94054031,0.00032876,2]
[399407508,1766328652558,-150.0,0.00032876,2]
[399407509,1766328652567,-500.0,0.00032877,2]
[399407510,1766328652577,-500.0,0.00032877,2]
[399407511,1766328652588,-408.62371111,0.00032877,2]
[399407512,1766328652598,-500.0,0.00032877,7]
[399407513,1766328652609,-39.63574858,0.00032877,7]
[399407514,1766328652620,-460.36425142,0.00032877,7]
[399407515,1766328652631,-188.08619035,0.00032877,7]
[399407516,1766328652641,-368.47422035,0.000329,14]
[399407517,1766328652653,-430.4257349,0.000329,14]
[399407518,1766328652804,-500.0,0.00013273,2]
[399407519,1766328652814,-103.2142,0.00013821,2]
[399407520,1766328652826,-524.4202399,0.00013821,2]
[399407521,1766328652836,-190.303,0.00021593,2]
[399407522,1766328652846,-547.80350707,0.00021593,2]
[399407523,1766328652859,-4255.19649293,0.00021593,2]
[399407524,1766328652869,-4803.0,0.00024593,2]
[399407525,1766328652878,-150.0,0.00025,2]
[399407526,1766328653143,-202.47004475,0.000329,14]
[399407527,1766328653153,-7525.96,0.000329,2]
[399407528,1766328653165,-151.17822928,0.0003293,2]
[399407529,1766328653175,-370.91026638,0.00032988,2]
[399407530,1766328653185,-416.03518578,0.00032988,2]
[399407531,1766328653195,-570.75,0.00033,14]
[399407532,1766328653205,-33079.5795863,0.00033,13]
[399407533,1766328653215,-152.57999351,0.00033,2]
[399407534,1766328653228,-535.383051,0.00033,8]
[399407535,1766328653238,-1000.0,0.00033165,2]
[399407536,1766328653248,-1000.0,0.00033189,10]
[399407537,1766328653259,-1203.82045284,0.000335,2]
[399407538,1766328653269,-152.0,0.00033583,4]
[399407539,1766328653279,-1609.0,0.00033593,2]
[399407540,1766328653291,-1602.719,0.00033593,2]
[399407541,1766328653301,-1325.885,0.00033593,2]
[399407542,1766328653311,-1262.0,0.00033593,2]
[399407543,1766328653320,-518.0,0.00033593,2]
[399407544,1766328653330,-564.0,0.00033593,2]
[399407545,1766328653340,-2429.0,0.00033593,2]
[399407546,1766328653351,-324.93270582,0.00034,2]
[399407547,1766328653360,-3710.0,0.00034098,3]
[399407548,1766328653370,-1790.54189972,0.00034163,2]
[399407549,1766328653380,-384.63394623,0.00034357,2]
[399407550,1766328653390,-431.42848765,0.00034357,2]
[399407551,1766328653400,-4144.52,0.000344,14]
[399407552,1766328653410,-1720.04296592,0.0003449,2]
[399407553,1766328653420,-151.17822933,0.00034576,2]
[399407554,1766328653430,-1001.37,0.000349,14]
[399407555,1766328653439,-7525.96,0.000349,2]
[399407556,1766328653449,-500.0,0.000349,2]
[399407557,1766328653459,-500.0,0.000349,2]
[399407558,1766328653469,-500.0,0.000349,2]
[399407559,1766328653479,-500.0,0.000349,2]
[399407560,1766328653489,-500.0,0.000349,2]
[399407561,1766328653498,-500.0,0.000349,2]
[399407562,1766328653507,-500.0,0.000349,2]
[399407563,1766328653517,-500.0,0.000349,2]
[399407564,1766328653526,-500.0,0.000349,2]
[399407565,1766328653535,-500.0,0.000349,2]
[399407566,1766328653544,-500.0,0.000349,2]
[399407567,1766328653554,-500.0,0.000349,2]
[399407568,1766328653564,-500.0,0.000349,2]
[399407569,1766328653574,-500.0,0.000349,2]
[399407570,1766328653584,-500.0,0.000349,2]
[399407571,1766328653594,-500.0,0.000349,2]
[399407572,1766328653605,-500.0,0.000349,2]
[399407573,1766328653614,-500.0,0.000349,2]
[399407574,1766328653625,-500.0,0.000349,2]
[399407575,1766328653634,-500.0,0.000349,2]
[399407576,1766328653644,-500.0,0.000349,2]
[399407577,1766328653654,-500.0,0.000349,2]
[399407578,1766328653663,-500.0,0.000349,2]
[399407579,1766328653673,-500.0,0.000349,2]
[399407580,1766328653682,-500.0,0.000349,2]
[399407581,1766328653691,-500.0,0.000349,2]
[399407582,1766328653701,-873.0,0.000349,2]
[399407583,1766328653711,-500.0,0.000349,2]
[399407584,1766328653720,-500.0,0.000349,2]
[399407585,1766328653729,-500.0,0.000349,2]
[399407586,1766328653739,-500.0,0.000349,2]
[399407587,1766328653748,-500.0,0.000349,2]
[399407588,1766328653758,-500.0,0.000349,2]
[399407589,1766328653767,-500.0,0.000349,2]
[399407590,1766328653777,-500.0,0.000349,2]
[399407591,1766328653786,-500.0,0.000349,2]
[399407592,1766328653795,-500.0,0.000349,2]
[399407593,1766328653804,-500.0,0.000349,2]
[399407594,1766328653814,-500.0,0.000349,2]
[399407595,1766328653824,-500.0,0.000349,2]
[399407596,1766328653835,-500.0,0.000349,2]
[399407597,1766328653845,-500.0,0.000349,2]
[399407598,1766328653855,-500.0,0.000349,2]
[399407599,1766328653865,-500.0,0.000349,2]
[399407600,1766328653875,-500.0,0.000349,2]
[399407601,1766328653884,-500.0,0.000349,2]
[399407602,1766328653895,-500.0,0.000349,2]
[399407603,1766328653905,-500.0,0.000349,2]
[399407604,1766328653915,-500.0,0.000349,2]
[399407605,1766328653926,-500.0,0.000349,2]
[399407606,1766328653936,-500.0,0.000349,2]
[399407607,1766328653945,-500.0,0.000349,2]
[399407608,1766328653955,-500.0,0.000349,2]
[399407609,1766328653964,-500.0,0.000349,2]
[399407610,1766328653974,-500.0,0.000349,2]
[399407611,1766328653984,-500.0,0.000349,2]
[399407612,1766328653994,-500.0,0.000349,2]
[399407613,1766328654003,-500.0,0.000349,2]
[399407614,1766328654013,-500.0,0.000349,2]
[399407615,1766328654023,-500.0,0.000349,2]
[399407616,1766328654032,-500.0,0.000349,2]
[399407617,1766328654042,-500.0,0.000349,2]
[399407618,1766328654051,-500.0,0.000349,2]
[399407619,1766328654062,-500.0,0.000349,2]
[399407620,1766328654071,-500.0,0.000349,2]
[399407621,1766328654081,-500.0,0.000349,2]
[399407622,1766328654090,-500.0,0.000349,2]
[399407623,1766328654101,-500.0,0.000349,2]
[399407624,1766328654111,-500.0,0.000349,2]
[399407625,1766328654120,-500.0,0.000349,2]
[399407626,1766328654129,-500.0,0.000349,2]
[399407627,1766328654138,-500.0,0.000349,2]
[399407628,1766328654148,-500.0,0.000349,2]
[399407629,1766328654157,-500.0,0.000349,2]
[399407630,1766328654166,-500.0,0.000349,2]
[399407631,1766328654176,-500.0,0.000349,2]
[399407632,1766328654185,-500.0,0.000349,2]
[399407633,1766328654194,-500.0,0.000349,2]
[399407634,1766328654203,-500.0,0.000349,2]
[399407635,1766328654213,-500.0,0.000349,2]
[399407636,1766328654226,-500.0,0.000349,2]
[399407637,1766328654235,-500.0,0.000349,2]
[399407638,1766328654245,-500.0,0.000349,2]
[399407639,1766328654254,-500.0,0.000349,2]
[399407640,1766328654265,-500.0,0.000349,2]
[399407641,1766328654275,-500.0,0.000349,2]
[399407642,1766328654284,-500.0,0.000349,2]
[399407643,1766328654296,-500.0,0.000349,2]
[399407644,1766328654306,-500.0,0.000349,2]
[399407645,1766328654315,-500.0,0.000349,2]
[399407646,1766328654324,-500.0,0.000349,2]
[399407647,1766328654334,-500.0,0.000349,2]
[399407648,1766328654343,-500.0,0.000349,2]
[399407649,1766328654353,-500.0,0.000349,2]
[399407650,1766328654362,-500.0,0.000349,2]
[399407651,1766328654372,-500.0,0.000349,2]
[399407652,1766328654382,-500.0,0.000349,2]
[399407653,1766328654392,-500.0,0.000349,2]
[399407654,1766328654401,-500.0,0.000349,2]
[399407655,1766328654410,-500.0,0.000349,2]
[399407656,1766328654421,-611.0,0.000349,2]
[399407657,1766328654430,-500.0,0.000349,2]
[399407658,1766328654440,-500.0,0.000349,2]
[399407659,1766328654450,-500.0,0.000349,2]
[399407660,1766328654459,-500.0,0.000349,2]
[399407661,1766328654470,-500.0,0.000349,2]
[399407662,1766328654480,-500.0,0.000349,2]
[399407663,1766328654489,-500.0,0.000349,2]
[399407664,1766328654498,-500.0,0.000349,2]
[399407665,1766328654508,-500.0,0.000349,2]
[399407666,1766328654517,-500.0,0.000349,2]
[399407667,1766328654526,-500.0,0.000349,2]
[399407668,1766328654535,-500.0,0.000349,2]
[399407669,1766328654546,-500.0,0.000349,2]
[399407670,1766328654556,-500.0,0.000349,2]
[399407671,1766328654565,-500.0,0.000349,2]
[399407672,1766328654574,-500.0,0.000349,2]
[399407673,1766328654585,-500.0,0.000349,2]
[399407674,1766328654594,-500.0,0.000349,2]
[399407675,1766328654604,-500.0,0.000349,2]
[399407676,1766328654613,-500.0,0.000349,2]
[399407677,1766328654623,-500.0,0.000349,2]
[399407678,1766328654633,-500.0,0.000349,2]
[399407679,1766328654643,-500.0,0.000349,2]
[399407680,1766328654653,-500.0,0.000349,2]
[399407681,1766328654663,-500.0,0.000349,2]
[399407682,1766328654672,-500.0,0.000349,2]
[399407683,1766328654682,-500.0,0.000349,2]
[399407684,1766328654692,-500.0,0.000349,2]
[399407685,1766328654702,-500.0,0.000349,2]
[399407686,1766328654711,-500.0,0.000349,2]
[399407687,1766328654721,-500.0,0.000349,2]
[399407688,1766328654731,-500.0,0.000349,2]
[399407689,1766328654740,-500.0,0.000349,2]
[399407690,1766328654750,-500.0,0.000349,2]
[399407691,1766328654759,-500.0,0.000349,2]
[399407692,1766328654768,-500.0,0.000349,2]
[399407693,1766328654777,-500.0,0.000349,2]
[399407694,1766328654786,-500.0,0.000349,2]
[399407695,1766328654795,-500.0,0.000349,2]
[399407696,1766328654805,-500.0,0.000349,2]
[399407697,1766328654814,-500.0,0.000349,2]
[399407698,1766328654824,-500.0,0.000349,2]
[399407699,1766328654833,-500.0,0.000349,2]
[399407700,1766328654842,-500.0,0.000349,2]
[399407701,1766328654851,-500.0,0.000349,2]
[399407702,1766328654860,-500.0,0.000349,2]
[399407703,1766328654869,-500.0,0.000349,2]
[399407704,1766328654879,-500.0,0.000349,2]
[399407705,1766328654890,-500.0,0.000349,2]
[399407706,1766328654900,-500.0,0.000349,2]
[399407707,1766328654910,-500.0,0.000349,2]
[399407708,1766328654920,-500.0,0.000349,2]
[399407709,1766328654930,-500.0,0.000349,2]
[399407710,1766328654940,-500.0,0.000349,2]
[399407711,1766328654950,-500.0,0.000349,2]
[399407712,1766328654959,-500.0,0.000349,2]
[399407713,1766328654969,-500.0,0.000349,2]
[399407714,1766328654979,-500.0,0.000349,2]
[399407715,1766328654988,-500.0,0.000349,2]
[399407716,1766328654997,-500.0,0.000349,2]
[399407717,1766328655007,-500.0,0.000349,2]
[399407718,1766328655017,-500.0,0.000349,2]
[399407719,1766328655026,-500.0,0.000349,2]
[399407720,1766328655037,-500.0,0.000349,2]
[399407721,1766328655047,-500.0,0.000349,2]
[399407722,1766328655059,-500.0,0.000349,2]
[399407723,1766328655068,-500.0,0.000349,2]
[399407724,1766328655079,-500.0,0.000349,2]
[399407725,1766328655089,-500.0,0.000349,2]
[399407726,1766328655099,-500.0,0.000349,2]
[399407727,1766328655108,-500.0,0.000349,2]
[399407728,1766328655118,-500.0,0.000349,2]
[399407729,1766328655128,-500.0,0.000349,2]
[399407730,1766328655138,-500.0,0.000349,2]
[399407731,1766328655147,-500.0,0.000349,2]
[399407732,1766328655157,-500.0,0.000349,2]
[399407733,1766328655167,-500.0,0.000349,2]
[399407734,1766328655177,-500.0,0.000349,2]
[399407735,1766328655186,-500.0,0.000349,2]
[399407736,1766328655195,-500.0,0.000349,2]
[399407737,1766328655205,-500.0,0.000349,2]
[399407738,1766328655215,-500.0,0.000349,2]
[399407739,1766328655227,-500.0,0.000349,2]
[399407740,1766328655236,-500.0,0.000349,2]
[399407741,1766328655246,-500.0,0.000349,2]
[399407742,1766328655257,-500.0,0.000349,2]
[399407743,1766328655269,-500.0,0.000349,2]
[399407744,1766328655278,-500.0,0.000349,2]
[399407745,1766328655288,-500.0,0.000349,2]
[399407746,1766328655300,-500.0,0.000349,2]
[399407747,1766328655310,-500.0,0.000349,2]
[399407748,1766328655320,-500.0,0.000349,2]
[399407749,1766328655329,-500.0,0.000349,2]
[399407750,1766328655339,-500.0,0.000349,2]
[399407751,1766328655349,-500.0,0.000349,2]
[399407752,1766328655359,-500.0,0.000349,2]
[399407753,1766328655369,-500.0,0.000349,2]
[399407754,1766328655379,-500.0,0.000349,2]
[399407755,1766328655388,-500.0,0.000349,2]
[399407756,1766328655398,-500.0,0.000349,2]
[399407757,1766328655408,-500.0,0.000349,2]
[399407758,1766328655418,-500.0,0.000349,2]
[399407759,1766328655428,-500.0,0.000349,2]
[399407760,1766328655437,-500.0,0.000349,2]
[399407761,1766328655447,-500.0,0.000349,2]
[399407762,1766328655456,-500.0,0.000349,2]
[399407763,1766328655465,-500.0,0.000349,2]
[399407764,1766328655474,-500.0,0.000349,2]
[399407765,1766328655484,-500.0,0.000349,2]
[399407766,1766328655493,-500.0,0.000349,2]
[399407767,1766328655503,-500.0,0.000349,2]
[399407768,1766328655512,-500.0,0.000349,2]
[399407769,1766328655521,-500.0,0.000349,2]
[399407770,1766328655531,-500.0,0.000349,2]
[399407771,1766328655595,-500.0,0.000349,2]
[399407772,1766328655605,-500.0,0.000349,2]
[399407773,1766328655614,-500.0,0.000349,2]
[399407774,1766328655623,-500.0,0.000349,2]
[399407775,1766328655631,-500.0,0.000349,2]
[399407776,1766328655640,-500.0,0.000349,2]
[399407777,1766328655650,-500.0,0.000349,2]
[399407778,1766328655660,-500.0,0.000349,2]
[399407779,1766328655670,-500.0,0.000349,2]
[399407780,1766328655680,-500.0,0.000349,2]
[399407781,1766328655690,-500.0,0.000349,2]
[399407782,1766328655699,-500.0,0.000349,2]
[399407783,1766328655709,-500.0,0.000349,2]
[399407784,1766328655718,-500.0,0.000349,2]
[399407785,1766328655727,-500.0,0.000349,2]
[399407786,1766328655738,-500.0,0.000349,2]
[399407787,1766328655747,-500.0,0.000349,2]
[399407788,1766328655758,-500.0,0.000349,2]
[399407789,1766328655768,-500.0,0.000349,2]
[399407790,1766328655778,-500.0,0.000349,2]
[399407791,1766328655788,-500.0,0.000349,2]
[399407792,1766328655796,-500.0,0.000349,2]
[399407793,1766328655805,-500.0,0.000349,2]
[399407794,1766328655814,-500.0,0.000349,2]
[399407795,1766328655823,-500.0,0.000349,2]
[399407796,1766328655832,-500.0,0.000349,2]
[399407797,1766328655841,-500.0,0.000349,2]
[399407798,1766328655850,-500.0,0.000349,2]
[399407799,1766328655859,-500.0,0.000349,2]
[399407800,1766328655868,-500.0,0.000349,2]
[399407801,1766328655877,-500.0,0.000349,2]
[399407802,1766328655886,-500.0,0.000349,2]
[399407803,1766328655896,-500.0,0.000349,2]
[399407804,1766328655905,-500.0,0.000349,2]
[399407805,1766328655915,-500.0,0.000349,2]
[399407806,1766328655925,-500.0,0.000349,2]
[399407807,1766328655934,-500.0,0.000349,2]
[399407808,1766328655943,-500.0,0.000349,2]
[399407809,1766328655952,-500.0,0.000349,2]
[399407810,1766328655961,-500.0,0.000349,2]
[399407811,1766328655970,-500.0,0.000349,2]
[399407812,1766328655978,-500.0,0.000349,2]
[399407813,1766328655987,-500.0,0.000349,2]
[399407814,1766328655996,-500.0,0.000349,2]
[399407815,1766328656005,-500.0,0.000349,2]
[399407816,1766328656014,-500.0,0.000349,2]
[399407817,1766328656023,-500.0,0.000349,2]
[399407818,1766328656032,-500.0,0.000349,2]
[399407819,1766328656042,-500.0,0.000349,2]
[399407820,1766328656051,-500.0,0.000349,2]
[399407821,1766328656062,-500.0,0.000349,2]
[399407822,1766328656071,-500.0,0.000349,2]
[399407823,1766328656080,-500.0,0.000349,2]
[399407824,1766328656090,-500.0,0.000349,2]
[399407825,1766328656101,-500.0,0.000349,2]
[399407826,1766328656111,-500.0,0.000349,2]
[399407827,1766328656120,-500.0,0.000349,2]
[399407828,1766328656130,-500.0,0.000349,2]
[399407829,1766328656139,-500.0,0.000349,2]
[399407830,1766328656148,-500.0,0.000349,2]
[399407831,1766328656157,-500.0,0.000349,2]
[399407832,1766328656166,-500.0,0.000349,2]
[399407833,1766328656175,-500.0,0.000349,2]
[399407834,1766328656184,-500.0,0.000349,2]
[399407835,1766328656193,-500.0,0.000349,2]
[399407836,1766328656202,-500.0,0.000349,2]
[399407837,1766328656211,-500.0,0.000349,2]
[399407838,1766328656225,-500.0,0.000349,2]
[399407839,1766328656234,-500.0,0.000349,2]
[399407840,1766328656244,-500.0,0.000349,2]
[399407841,1766328656253,-500.0,0.000349,2]
[399407842,1766328656263,-500.0,0.000349,2]
[399407843,1766328656273,-500.0,0.000349,2]
[399407844,1766328656283,-500.0,0.000349,2]
[399407845,1766328656294,-500.0,0.000349,2]
[399407846,1766328656303,-500.0,0.000349,2]
[399407847,1766328656312,-500.0,0.000349,2]
[399407848,1766328656321,-500.0,0.000349,2]
[399407849,1766328656331,-500.0,0.000349,2]
[399407850,1766328656340,-500.0,0.000349,2]
[399407851,1766328656349,-500.0,0.000349,2]
[399407852,1766328656359,-500.0,0.000349,2]
[399407853,1766328656368,-500.0,0.000349,2]
[399407854,1766328656377,-500.0,0.000349,2]
[399407855,1766328656386,-500.0,0.000349,2]
[399407856,1766328656396,-500.0,0.000349,2]
[399407857,1766328656406,-500.0,0.000349,2]
[399407858,1766328656415,-500.0,0.000349,2]
[399407859,1766328656424,-500.0,0.000349,2]
[399407860,1766328656434,-500.0,0.000349,2]
[399407861,1766328656443,-500.0,0.000349,2]
[399407862,1766328656452,-500.0,0.000349,2]
[399407863,1766328656462,-500.0,0.000349,2]
[399407864,1766328656472,-500.0,0.000349,2]
[399407865,1766328656481,-500.0,0.000349,2]
[399407866,1766328656491,-500.0,0.000349,2]
[399407867,1766328656500,-500.0,0.000349,2]